[Event "*** Qualifier 3: Titled Tuesday 3|2 Blitz"]
[Site "Chess.com"]
[Date "2017.04.18"]
[Round "4"]
[White "johnathan113"]
[Black "Keranke"]
[Result "1-0"]
[WhiteElo "2480"]
[BlackElo "2623"]
[TimeControl "180+2"]
[EndTime "13:51:43 PDT"]
[Termination "johnathan113 won on time"]

1. e4 {[%clk 0:02:57.9]} 1... g6 {[%clk 0:03:01]} 2. d4 {[%clk 0:02:58.4]} 2...
Bg7 {[%clk 0:03:02.4]} 3. Nc3 {[%clk 0:02:59.3]} 3... d6 {[%clk 0:03:03.4]} 4.
Be3 {[%clk 0:02:59.8]} 4... a6 {[%clk 0:03:04.8]} 5. Qd2 {[%clk 0:03:00.2]} 5...
b5 {[%clk 0:03:06]} 6. h4 {[%clk 0:03:01.5]} 6... h6 {[%clk 0:03:06.8]} 7. f4
{[%clk 0:03:00.3]} 7... h5 {[%clk 0:03:07.4]} 8. Bd3 {[%clk 0:03:00.5]} 8... Nh6
{[%clk 0:03:08]} 9. Nf3 {[%clk 0:02:59.5]} 9... Ng4 {[%clk 0:03:07.4]} 10. O-O-O
{[%clk 0:02:49.1]} 10... Nxe3 {[%clk 0:02:49.7]} 11. Qxe3 {[%clk 0:02:49.9]}
11... Bg4 {[%clk 0:02:51.2]} 12. Kb1 {[%clk 0:02:44.8]} 12... Nd7 {[%clk
0:02:46.9]} 13. e5 {[%clk 0:02:44.8]} 13... O-O {[%clk 0:02:35.8]} 14. e6 {[%clk
0:02:30.8]} 14... fxe6 {[%clk 0:02:31.7]} 15. Bxg6 {[%clk 0:02:29.3]} 15... c5
{[%clk 0:02:24.9]} 16. d5 {[%clk 0:02:06]} 16... b4 {[%clk 0:02:25.6]} 17. Ne4
{[%clk 0:02:04.6]} 17... exd5 {[%clk 0:02:19]} 18. Rxd5 {[%clk 0:02:06.5]} 18...
Nb6 {[%clk 0:02:04.1]} 19. Rg5 {[%clk 0:01:39.4]} 19... Nc4 {[%clk 0:01:44.6]}
20. Qe2 {[%clk 0:01:40.2]} 20... Nxb2 {[%clk 0:01:22.4]} 21. Bxh5 {[%clk
0:01:35.3]} 21... Bxh5 {[%clk 0:01:22.6]} 22. Rxh5 {[%clk 0:01:35.1]} 22... Qe8
{[%clk 0:01:19.3]} 23. Nfg5 {[%clk 0:01:26.2]} 23... Rxf4 {[%clk 0:01:10]} 24.
Ne6 {[%clk 0:01:18.3]} 24... Rf7 {[%clk 0:00:23.8]} 25. Nxg7 {[%clk 0:01:18]}
25... Rxg7 {[%clk 0:00:21.3]} 26. Kxb2 {[%clk 0:01:18.9]} 26... Qb5 {[%clk
0:00:18.4]} 27. Qd2 {[%clk 0:01:02.8]} 27... Qc4 {[%clk 0:00:15.6]} 28. Qh6
{[%clk 0:00:43.6]} 28... Qd4+ {[%clk 0:00:08.4]} 29. Kb1 {[%clk 0:00:40.7]}
29... Ra7 {[%clk 0:00:03.6]} 30. Qe6+ {[%clk 0:00:34.9]} 30... Rf7 {[%clk
0:00:04]} 31. Rf1 {[%clk 0:00:30.8]} 1-0

[Event "*** Qualifier 3: Titled Tuesday 3|2 Blitz"]
[Site "Chess.com"]
[Date "2017.04.18"]
[Round "4"]
[White "Alexander_Moskalenko"]
[Black "dhanushbharadwaj"]
[Result "1-0"]
[WhiteElo "2655"]
[BlackElo "2455"]
[TimeControl "180+2"]
[EndTime "13:51:57 PDT"]
[Termination "Alexander_Moskalenko won by checkmate"]

1. c4 {[%clk 0:03:02]} 1... g6 {[%clk 0:02:56.2]} 2. Nf3 {[%clk 0:02:36.6]} 2...
Bg7 {[%clk 0:02:55.4]} 3. g3 {[%clk 0:02:36.9]} 3... Nf6 {[%clk 0:02:55.7]} 4.
d4 {[%clk 0:02:37.4]} 4... d6 {[%clk 0:02:55.6]} 5. Bg2 {[%clk 0:02:38.9]} 5...
O-O {[%clk 0:02:55.8]} 6. Nc3 {[%clk 0:02:20.9]} 6... Nbd7 {[%clk 0:02:54.7]} 7.
O-O {[%clk 0:02:20.8]} 7... e5 {[%clk 0:02:54.5]} 8. Qc2 {[%clk 0:02:21.9]} 8...
c6 {[%clk 0:02:52.8]} 9. Rd1 {[%clk 0:02:21.1]} 9... Qc7 {[%clk 0:02:52]} 10. b3
{[%clk 0:02:21.6]} 10... Re8 {[%clk 0:02:47.8]} 11. dxe5 {[%clk 0:02:20.9]}
11... dxe5 {[%clk 0:02:43.4]} 12. Nd2 {[%clk 0:02:21.6]} 12... Nc5 {[%clk
0:02:41.3]} 13. Ba3 {[%clk 0:02:21.7]} 13... Ne6 {[%clk 0:02:29]} 14. e3 {[%clk
0:02:18.6]} 14... h5 {[%clk 0:02:17.3]} 15. Nde4 {[%clk 0:02:17.3]} 15... Nxe4
{[%clk 0:02:15.2]} 16. Nxe4 {[%clk 0:02:19.2]} 16... Qa5 {[%clk 0:01:53.7]} 17.
Bb2 {[%clk 0:02:11.7]} 17... f5 {[%clk 0:01:36.7]} 18. Bc3 {[%clk 0:02:02]}
18... Qc7 {[%clk 0:01:30]} 19. Nd6 {[%clk 0:02:02.4]} 19... Rd8 {[%clk
0:01:29.4]} 20. c5 {[%clk 0:01:24.5]} 20... e4 {[%clk 0:01:17.4]} 21. b4 {[%clk
0:01:23.4]} 21... Kh7 {[%clk 0:00:49.8]} 22. h4 {[%clk 0:01:21.6]} 22... Qe7
{[%clk 0:00:41.2]} 23. Bf1 {[%clk 0:01:19.6]} 23... Nc7 {[%clk 0:00:36.6]} 24.
Bc4 {[%clk 0:01:16.3]} 24... Be6 {[%clk 0:00:33.8]} 25. Bxg7 {[%clk 0:01:07.8]}
25... Qxg7 {[%clk 0:00:26.3]} 26. Nxb7 {[%clk 0:01:06.3]} 26... Bxc4 {[%clk
0:00:20.7]} 27. Qxc4 {[%clk 0:01:00.7]} 27... Rxd1+ {[%clk 0:00:12.9]} 28. Rxd1
{[%clk 0:01:02.6]} 28... Nd5 {[%clk 0:00:13.6]} 29. Na5 {[%clk 0:01:02.1]} 29...
Qb2 {[%clk 0:00:10.1]} 30. Nxc6 {[%clk 0:00:59.4]} 30... Nc3 {[%clk 0:00:08.6]}
31. Rd7+ {[%clk 0:00:58.2]} 31... Kh6 {[%clk 0:00:09]} 32. Qf7 {[%clk
0:00:49.1]} 32... Ne2+ {[%clk 0:00:08.5]} 33. Kg2 {[%clk 0:00:49.1]} 33... Qh8
{[%clk 0:00:08.7]} 34. Ne5 {[%clk 0:00:41.6]} 34... Re8 {[%clk 0:00:07.6]} 35.
Qxg6# {[%clk 0:00:26.4]} 1-0

[Event "*** Qualifier 3: Titled Tuesday 3|2 Blitz"]
[Site "Chess.com"]
[Date "2017.04.18"]
[Round "4"]
[White "JaimeSantosLatasa"]
[Black "RaphaeI"]
[Result "0-1"]
[WhiteElo "2541"]
[BlackElo "2392"]
[TimeControl "180+2"]
[EndTime "13:52:11 PDT"]
[Termination "RaphaeI won by resignation"]

1. e4 {[%clk 0:03:02]} 1... c5 {[%clk 0:02:59.4]} 2. Nf3 {[%clk 0:03:02.9]} 2...
d6 {[%clk 0:03:00.4]} 3. d4 {[%clk 0:03:04.5]} 3... cxd4 {[%clk 0:03:01.4]} 4.
Nxd4 {[%clk 0:03:06.4]} 4... Nf6 {[%clk 0:03:03]} 5. Nc3 {[%clk 0:03:07.9]} 5...
g6 {[%clk 0:03:04.6]} 6. Be3 {[%clk 0:03:07.2]} 6... Bg7 {[%clk 0:03:05.9]} 7.
f3 {[%clk 0:03:07.8]} 7... Nc6 {[%clk 0:03:07.5]} 8. Qd2 {[%clk 0:03:08.8]} 8...
O-O {[%clk 0:03:08.9]} 9. Bc4 {[%clk 0:03:09.8]} 9... Bd7 {[%clk 0:03:09.2]} 10.
O-O-O {[%clk 0:03:07.3]} 10... Rb8 {[%clk 0:03:10.3]} 11. Bb3 {[%clk 0:03:04.6]}
11... Na5 {[%clk 0:02:52.8]} 12. h4 {[%clk 0:03:02.5]} 12... b5 {[%clk
0:02:52.4]} 13. Kb1 {[%clk 0:03:00.6]} 13... Nc4 {[%clk 0:02:52.1]} 14. Bxc4
{[%clk 0:02:58.8]} 14... bxc4 {[%clk 0:02:54]} 15. h5 {[%clk 0:02:56]} 15... Re8
{[%clk 0:02:52.7]} 16. g4 {[%clk 0:02:50.6]} 16... Qa5 {[%clk 0:02:49]} 17. Ka1
{[%clk 0:02:46.4]} 17... Rb6 {[%clk 0:02:41.9]} 18. hxg6 {[%clk 0:02:43.5]}
18... fxg6 {[%clk 0:02:42.6]} 19. g5 {[%clk 0:02:42.7]} 19... Nh5 {[%clk
0:02:43.2]} 20. Nd5 {[%clk 0:02:35.9]} 20... Qxd2 {[%clk 0:02:43.7]} 21. Rxd2
{[%clk 0:02:36.6]} 21... Rb7 {[%clk 0:02:33.4]} 22. Rdh2 {[%clk 0:02:27.6]}
22... e6 {[%clk 0:02:09.9]} 23. Nc3 {[%clk 0:02:20]} 23... Rf8 {[%clk
0:01:52.7]} 24. Rf1 {[%clk 0:02:08.7]} 24... Rfb8 {[%clk 0:01:24.5]} 25. b3
{[%clk 0:02:04.9]} 25... cxb3 {[%clk 0:01:13.8]} 26. axb3 {[%clk 0:02:06.8]}
26... a5 {[%clk 0:01:14.2]} 27. Na2 {[%clk 0:01:49.5]} 27... Rf8 {[%clk
0:00:32.2]} 28. Kb1 {[%clk 0:01:45.5]} 28... d5 {[%clk 0:00:16.2]} 29. exd5
{[%clk 0:01:41]} 29... exd5 {[%clk 0:00:18.1]} 30. Nc3 {[%clk 0:01:41.3]} 30...
a4 {[%clk 0:00:19]} 31. Nxd5 {[%clk 0:01:39.9]} 31... axb3 {[%clk 0:00:20.3]}
32. Nxb3 {[%clk 0:01:36.8]} 32... Be6 {[%clk 0:00:21.7]} 33. Rd2 {[%clk
0:01:33.2]} 33... Ra8 {[%clk 0:00:20.8]} 34. Nf6+ {[%clk 0:01:16.4]} 34... Nxf6
{[%clk 0:00:20.3]} 35. gxf6 {[%clk 0:01:18.3]} 35... Bxf6 {[%clk 0:00:21.6]} 36.
Bd4 {[%clk 0:01:19.6]} 36... Bxb3 {[%clk 0:00:19.6]} 37. cxb3 {[%clk 0:01:19]}
37... Bxd4 {[%clk 0:00:16.3]} 38. Rxd4 {[%clk 0:01:20.9]} 38... Rxb3+ {[%clk
0:00:17.8]} 39. Kc2 {[%clk 0:01:21.6]} 39... Rb7 {[%clk 0:00:15.9]} 40. Kd2
{[%clk 0:01:18.2]} 40... Re8 {[%clk 0:00:16.6]} 41. Rc1 {[%clk 0:01:16.5]} 41...
Rbe7 {[%clk 0:00:17.3]} 42. Rc6 {[%clk 0:01:12.5]} 42... Kg7 {[%clk 0:00:16.6]}
43. Rd3 {[%clk 0:01:08]} 43... Re2+ {[%clk 0:00:17.3]} 44. Kc3 {[%clk
0:01:08.5]} 44... R2e3 {[%clk 0:00:18.2]} 45. f4 {[%clk 0:01:07.9]} 45... Rxd3+
{[%clk 0:00:18.8]} 46. Kxd3 {[%clk 0:01:09.8]} 46... h5 {[%clk 0:00:19.1]} 47.
Rc5 {[%clk 0:01:09.7]} 47... Kf6 {[%clk 0:00:18.1]} 48. Rg5 {[%clk 0:01:09.5]}
48... Re1 {[%clk 0:00:16.6]} 49. Kd2 {[%clk 0:01:08.8]} 49... Re4 {[%clk
0:00:17.5]} 0-1

[Event "*** Qualifier 3: Titled Tuesday 3|2 Blitz"]
[Site "Chess.com"]
[Date "2017.04.18"]
[Round "4"]
[White "Quiet_Desperation"]
[Black "DiogenesSinopeus"]
[Result "0-1"]
[WhiteElo "2024"]
[BlackElo "2289"]
[TimeControl "180+2"]
[EndTime "13:52:14 PDT"]
[Termination "DiogenesSinopeus won by resignation"]

1. e4 {[%clk 0:03:01.9]} 1... e5 {[%clk 0:03:00.9]} 2. Nf3 {[%clk 0:02:59.9]}
2... Nc6 {[%clk 0:03:02.1]} 3. Bb5 {[%clk 0:03:00.7]} 3... a6 {[%clk 0:03:03.3]}
4. Ba4 {[%clk 0:03:01.9]} 4... d6 {[%clk 0:03:05.2]} 5. d3 {[%clk 0:03:03]} 5...
b5 {[%clk 0:03:02.2]} 6. Bb3 {[%clk 0:03:03.5]} 6... Na5 {[%clk 0:03:03.6]} 7.
c3 {[%clk 0:02:59.9]} 7... Nxb3 {[%clk 0:03:02.5]} 8. Qxb3 {[%clk 0:03:01.1]}
8... Nf6 {[%clk 0:02:29.1]} 9. h3 {[%clk 0:02:59.7]} 9... Be6 {[%clk 0:02:19]}
10. Qc2 {[%clk 0:02:58.9]} 10... h6 {[%clk 0:02:17.7]} 11. O-O {[%clk
0:02:58.8]} 11... Be7 {[%clk 0:02:16.4]} 12. Nbd2 {[%clk 0:02:54.8]} 12... O-O
{[%clk 0:01:59.8]} 13. Re1 {[%clk 0:02:45.6]} 13... c5 {[%clk 0:01:52.5]} 14.
Nf1 {[%clk 0:02:45.6]} 14... Qc7 {[%clk 0:01:50.7]} 15. Ng3 {[%clk 0:02:26.1]}
15... a5 {[%clk 0:01:50.9]} 16. Nf5 {[%clk 0:02:23.7]} 16... Bxf5 {[%clk
0:01:52.1]} 17. exf5 {[%clk 0:02:25.6]} 17... Rfe8 {[%clk 0:01:46.9]} 18. g4
{[%clk 0:02:23.2]} 18... Qc6 {[%clk 0:01:31.2]} 19. Nh2 {[%clk 0:02:23.6]} 19...
Nh7 {[%clk 0:01:28]} 20. Be3 {[%clk 0:02:17.1]} 20... Bg5 {[%clk 0:01:27.5]} 21.
Qd2 {[%clk 0:02:17.2]} 21... d5 {[%clk 0:01:21.1]} 22. f4 {[%clk 0:02:02.2]}
22... exf4 {[%clk 0:01:15.2]} 23. Bxf4 {[%clk 0:02:03.4]} 23... d4 {[%clk
0:01:09.6]} 24. Qf2 {[%clk 0:01:58.5]} 24... Qd5 {[%clk 0:01:06.3]} 25. Qg3
{[%clk 0:01:56.3]} 25... Bxf4 {[%clk 0:01:04.7]} 26. Qxf4 {[%clk 0:01:57]} 26...
Ng5 {[%clk 0:01:06.5]} 27. Qg3 {[%clk 0:01:55]} 27... dxc3 {[%clk 0:00:48]} 28.
bxc3 {[%clk 0:01:56.9]} 28... Rxe1+ {[%clk 0:00:47.3]} 29. Rxe1 {[%clk
0:01:57.3]} 29... Qxa2 {[%clk 0:00:28.8]} 30. h4 {[%clk 0:01:57.6]} 30... Nh7
{[%clk 0:00:27.5]} 31. g5 {[%clk 0:01:53.3]} 31... hxg5 {[%clk 0:00:25.7]} 32.
hxg5 {[%clk 0:01:54]} 32... Qd2 {[%clk 0:00:22.7]} 33. Nf3 {[%clk 0:01:47.2]}
33... Qxd3 {[%clk 0:00:18.1]} 34. g6 {[%clk 0:01:48.4]} 34... fxg6 {[%clk
0:00:15]} 35. fxg6 {[%clk 0:01:49.6]} 35... Nf6 {[%clk 0:00:16]} 36. Re7 {[%clk
0:01:31.4]} 36... Re8 {[%clk 0:00:14.9]} 37. Rxe8+ {[%clk 0:01:19.7]} 37... Nxe8
{[%clk 0:00:16.8]} 38. Qg4 {[%clk 0:01:16]} 38... Qe3+ {[%clk 0:00:12.9]} 39.
Kg2 {[%clk 0:01:15.4]} 39... Qe2+ {[%clk 0:00:14]} 40. Kg1 {[%clk 0:01:15.5]}
40... Nf6 {[%clk 0:00:14.5]} 41. Qc8+ {[%clk 0:01:14.5]} 41... Qe8 {[%clk
0:00:15.6]} 42. Qf5 {[%clk 0:01:14]} 42... a4 {[%clk 0:00:13.6]} 43. Ne5 {[%clk
0:01:10.7]} 43... a3 {[%clk 0:00:11.6]} 44. Nf7 {[%clk 0:01:06]} 44... a2 {[%clk
0:00:09.8]} 45. Qf1 {[%clk 0:01:02.8]} 45... Qa8 {[%clk 0:00:06]} 46. Qa1 {[%clk
0:01:01.8]} 46... Qa3 {[%clk 0:00:06]} 47. Ne5 {[%clk 0:00:56.8]} 47... Qb3
{[%clk 0:00:05.8]} 48. c4 {[%clk 0:00:54.6]} 48... Qb1+ {[%clk 0:00:06.6]} 49.
Qxb1 {[%clk 0:00:55.8]} 49... axb1=Q+ {[%clk 0:00:08.5]} 0-1

[Event "*** Qualifier 3: Titled Tuesday 3|2 Blitz"]
[Site "Chess.com"]
[Date "2017.04.18"]
[Round "4"]
[White "cailinchetty"]
[Black "abubakrtagelsir"]
[Result "0-1"]
[WhiteElo "1931"]
[BlackElo "2148"]
[TimeControl "180+2"]
[EndTime "13:52:26 PDT"]
[Termination "abubakrtagelsir won by resignation"]

1. e4 {[%clk 0:03:01.4]} 1... d6 {[%clk 0:02:56.7]} 2. d4 {[%clk 0:03:01.9]}
2... Nf6 {[%clk 0:02:57.1]} 3. Nc3 {[%clk 0:03:02.4]} 3... g6 {[%clk 0:02:57.9]}
4. h4 {[%clk 0:03:03.1]} 4... c6 {[%clk 0:02:48.2]} 5. h5 {[%clk 0:03:03.2]}
5... gxh5 {[%clk 0:02:47]} 6. Bg5 {[%clk 0:03:02.6]} 6... Bg7 {[%clk 0:02:25.1]}
7. Qd2 {[%clk 0:02:51.9]} 7... h6 {[%clk 0:02:08.3]} 8. Bh4 {[%clk 0:02:39.3]}
8... b5 {[%clk 0:02:05.6]} 9. Bd3 {[%clk 0:02:34.4]} 9... Qb6 {[%clk 0:02:04.8]}
10. Nge2 {[%clk 0:02:32.7]} 10... Nbd7 {[%clk 0:01:53.6]} 11. Qe3 {[%clk
0:02:13.9]} 11... Bb7 {[%clk 0:01:52.1]} 12. Qg3 {[%clk 0:02:12.5]} 12... Rg8
{[%clk 0:01:33]} 13. e5 {[%clk 0:02:08.1]} 13... dxe5 {[%clk 0:01:09.3]} 14.
dxe5 {[%clk 0:02:08.4]} 14... Ng4 {[%clk 0:01:09.2]} 15. e6 {[%clk 0:02:00.1]}
15... fxe6 {[%clk 0:01:01.1]} 16. Bg6+ {[%clk 0:01:56.9]} 16... Kd8 {[%clk
0:01:00.9]} 17. Be4 {[%clk 0:01:33.8]} 17... b4 {[%clk 0:00:33.6]} 18. Nd1
{[%clk 0:01:33]} 18... c5 {[%clk 0:00:28.1]} 19. Bxb7 {[%clk 0:01:29.9]} 19...
Qxb7 {[%clk 0:00:26]} 20. Kf1 {[%clk 0:01:24.3]} 20... Be5 {[%clk 0:00:24.7]}
21. Qf3 {[%clk 0:01:23.2]} 21... Kc7 {[%clk 0:00:21.2]} 22. Qxb7+ {[%clk
0:01:22.7]} 22... Kxb7 {[%clk 0:00:21.8]} 23. f3 {[%clk 0:01:24.3]} 23... Raf8
{[%clk 0:00:21.6]} 24. Ke1 {[%clk 0:01:23.1]} 24... Ngf6 {[%clk 0:00:22.2]} 25.
Rb1 {[%clk 0:01:19.1]} 25... Rxg2 {[%clk 0:00:21.4]} 26. Ne3 {[%clk 0:01:20.2]}
26... Rgg8 {[%clk 0:00:21.3]} 27. Nc4 {[%clk 0:01:20.1]} 27... Bc7 {[%clk
0:00:22.1]} 28. c3 {[%clk 0:01:20.7]} 28... a5 {[%clk 0:00:22.6]} 29. cxb4
{[%clk 0:01:21.3]} 29... axb4 {[%clk 0:00:22.7]} 30. a3 {[%clk 0:01:22.9]} 30...
Nd5 {[%clk 0:00:22]} 31. axb4 {[%clk 0:01:23.2]} 31... Nxb4 {[%clk 0:00:23]} 32.
Kd2 {[%clk 0:01:20.8]} 32... Rxf3 {[%clk 0:00:23]} 33. Be1 {[%clk 0:01:18]}
33... Rg2 {[%clk 0:00:23.1]} 34. Kd1 {[%clk 0:01:03.3]} 34... Rd3+ {[%clk
0:00:21.9]} 35. Nd2 {[%clk 0:01:02.3]} 35... Ne5 {[%clk 0:00:22.1]} 36. Nf4
{[%clk 0:01:03]} 36... Rdxd2+ {[%clk 0:00:19.9]} 37. Bxd2 {[%clk 0:01:01.7]}
37... Rf2 {[%clk 0:00:20.9]} 38. Nxh5 {[%clk 0:00:58.2]} 38... Nbd3 {[%clk
0:00:21.2]} 39. Ng7 {[%clk 0:00:57.4]} 39... Nc4 {[%clk 0:00:21.8]} 40. Be1
{[%clk 0:00:55.6]} 40... Ncxb2+ {[%clk 0:00:22.5]} 41. Rxb2+ {[%clk 0:00:54.9]}
41... Rxb2 {[%clk 0:00:23]} 42. Nxe6 {[%clk 0:00:50.7]} 42... Bd6 {[%clk
0:00:23.1]} 43. Bd2 {[%clk 0:00:48.7]} 43... Nf2+ {[%clk 0:00:23.3]} 0-1

[Event "*** Qualifier 3: Titled Tuesday 3|2 Blitz"]
[Site "Chess.com"]
[Date "2017.04.18"]
[Round "4"]
[White "MyleneFarmer"]
[Black "DariuszMikrut"]
[Result "1-0"]
[WhiteElo "2339"]
[BlackElo "2398"]
[TimeControl "180+2"]
[EndTime "13:52:28 PDT"]
[Termination "MyleneFarmer won by resignation"]

1. d4 {[%clk 0:03:01.5]} 1... Nf6 {[%clk 0:02:59.8]} 2. c4 {[%clk 0:03:00.2]}
2... g6 {[%clk 0:03:00.7]} 3. Nf3 {[%clk 0:03:00.8]} 3... Bg7 {[%clk 0:03:02.1]}
4. g3 {[%clk 0:03:02.1]} 4... O-O {[%clk 0:03:02.6]} 5. Bg2 {[%clk 0:03:03.7]}
5... d6 {[%clk 0:03:03.9]} 6. O-O {[%clk 0:03:05]} 6... c6 {[%clk 0:03:05.4]} 7.
Nc3 {[%clk 0:03:05.9]} 7... Bf5 {[%clk 0:03:06.4]} 8. Ne1 {[%clk 0:03:03.8]}
8... e5 {[%clk 0:03:05.3]} 9. e4 {[%clk 0:01:56.4]} 9... Bg4 {[%clk 0:03:05.3]}
10. f3 {[%clk 0:01:54.7]} 10... exd4 {[%clk 0:03:05.8]} 11. Qxd4 {[%clk
0:01:43]} 11... Be6 {[%clk 0:03:05.5]} 12. Qd3 {[%clk 0:01:38.6]} 12... Na6
{[%clk 0:03:06]} 13. Bf4 {[%clk 0:01:29.1]} 13... Qb6+ {[%clk 0:02:58]} 14. Rf2
{[%clk 0:01:27.5]} 14... Rfd8 {[%clk 0:02:48]} 15. Be3 {[%clk 0:01:24.5]} 15...
Qb4 {[%clk 0:02:47.4]} 16. b3 {[%clk 0:01:18]} 16... Nxe4 {[%clk 0:02:40.5]} 17.
Nxe4 {[%clk 0:01:12.5]} 17... Bxa1 {[%clk 0:02:40]} 18. Nc2 {[%clk 0:01:14.1]}
18... Qa5 {[%clk 0:02:26.6]} 19. Nxa1 {[%clk 0:01:14.5]} 19... Nc5 {[%clk
0:02:25.5]} 20. Nf6+ {[%clk 0:01:09.3]} 20... Kf8 {[%clk 0:02:26.7]} 21. Qd4
{[%clk 0:01:04.2]} 21... h5 {[%clk 0:02:20.6]} 22. Bh6+ {[%clk 0:00:58.1]} 22...
Ke7 {[%clk 0:02:21.1]} 23. Bg5 {[%clk 0:00:58.6]} 23... Kf8 {[%clk 0:02:21.2]}
24. Nxh5 {[%clk 0:00:47]} 24... Qe1+ {[%clk 0:02:13.2]} 25. Rf1 {[%clk
0:00:47.7]} 25... Qe5 {[%clk 0:02:13.9]} 26. Qxe5 {[%clk 0:00:34]} 26... dxe5
{[%clk 0:02:14.7]} 27. Bxd8 {[%clk 0:00:35.5]} 27... Rxd8 {[%clk 0:02:15.1]} 28.
Nf6 {[%clk 0:00:36.3]} 28... Rd2 {[%clk 0:02:14]} 29. Ne4 {[%clk 0:00:35.6]}
29... Nxe4 {[%clk 0:02:14.1]} 30. fxe4 {[%clk 0:00:37.5]} 30... Rxa2 {[%clk
0:02:15]} 31. Rc1 {[%clk 0:00:37.4]} 31... Rb2 {[%clk 0:02:14]} 32. Bf3 {[%clk
0:00:36.5]} 32... a5 {[%clk 0:02:07.7]} 33. Bd1 {[%clk 0:00:25.3]} 33... Ke7
{[%clk 0:02:04.2]} 34. Nc2 {[%clk 0:00:17.2]} 34... Rxb3 {[%clk 0:02:01]} 35.
Nd4 {[%clk 0:00:17.9]} 35... Rb2 {[%clk 0:01:57.3]} 36. Nxe6 {[%clk 0:00:18.3]}
36... Kxe6 {[%clk 0:01:58.8]} 37. Bg4+ {[%clk 0:00:19.1]} 37... Kd6 {[%clk
0:01:57]} 38. c5+ {[%clk 0:00:19.9]} 38... Ke7 {[%clk 0:01:54.1]} 39. Rd1 {[%clk
0:00:21.3]} 39... a4 {[%clk 0:01:54.8]} 40. Rd3 {[%clk 0:00:19.2]} 40... Rb3
{[%clk 0:01:51.7]} 41. Rxb3 {[%clk 0:00:20.4]} 41... axb3 {[%clk 0:01:52.4]} 42.
Bd1 {[%clk 0:00:22.1]} 42... b2 {[%clk 0:01:53.8]} 43. Bc2 {[%clk 0:00:23.6]}
43... Kd7 {[%clk 0:01:48.2]} 44. Kf2 {[%clk 0:00:24.5]} 44... Kc7 {[%clk
0:01:49.7]} 45. Ke3 {[%clk 0:00:24.6]} 45... b6 {[%clk 0:01:50.1]} 46. cxb6+
{[%clk 0:00:25.7]} 46... Kxb6 {[%clk 0:01:51.6]} 47. g4 {[%clk 0:00:27.2]} 47...
g5 {[%clk 0:01:51.9]} 48. Kd3 {[%clk 0:00:26.9]} 48... Kc5 {[%clk 0:01:49.5]}
49. Kc3 {[%clk 0:00:28.1]} 49... f6 {[%clk 0:01:50.7]} 50. h3 {[%clk 0:00:26.4]}
50... Kb5 {[%clk 0:01:49.1]} 51. Bd3+ {[%clk 0:00:25.3]} 51... Kc5 {[%clk
0:01:49.9]} 52. Bb1 {[%clk 0:00:24.9]} 52... Kb5 {[%clk 0:01:50.4]} 53. Bc2
{[%clk 0:00:26.3]} 53... Kc5 {[%clk 0:01:51.5]} 54. Bd3 {[%clk 0:00:27.8]} 54...
b1=Q {[%clk 0:01:44.3]} 55. Bxb1 {[%clk 0:00:28.5]} 55... Kb5 {[%clk 0:01:46]}
56. Bd3+ {[%clk 0:00:29.1]} 56... Kc5 {[%clk 0:01:46.9]} 57. Bc4 {[%clk
0:00:30.6]} 57... Kd6 {[%clk 0:01:45.1]} 58. Kb4 {[%clk 0:00:31.1]} 58... f5
{[%clk 0:01:44.7]} 59. gxf5 {[%clk 0:00:31]} 59... Kd7 {[%clk 0:01:41.9]} 60.
Kc5 {[%clk 0:00:31.7]} 60... Kc7 {[%clk 0:01:42.7]} 61. Bb3 {[%clk 0:00:27.7]}
61... Kd7 {[%clk 0:01:43]} 62. Ba4 {[%clk 0:00:27.7]} 62... Ke7 {[%clk
0:01:43.5]} 63. Bxc6 {[%clk 0:00:28.4]} 63... Kf6 {[%clk 0:01:45.4]} 64. Kd6
{[%clk 0:00:29]} 64... g4 {[%clk 0:01:45.8]} 65. hxg4 {[%clk 0:00:29.9]} 65...
Kg5 {[%clk 0:01:47.2]} 66. Kxe5 {[%clk 0:00:31.4]} 66... Kh4 {[%clk 0:01:48.1]}
67. f6 {[%clk 0:00:32.4]} 1-0